fUSD/lending_fUSD_20260617
["ID","MTS","AMOUNT","RATE_DAILY","PERIOD"]
[425236527,1781627518000,-1095.397874,0.00035455,7]
[425236523,1781627518000,-2623.423271,0.00035455,7]
[425236524,1781627518000,-1095.397874,0.00035455,7]
[425236525,1781627518000,-187.589407,0.00035455,7]
[425236529,1781627518000,-4573.124125,0.00035455,7]
[425236503,1781627518000,-767.786436,0.00035455,7]
[425236531,1781627518000,-1024.179099,0.00035455,7]
[425236510,1781627518000,-2386.709718,0.00035455,7]
[425236505,1781627518000,-767.786436,0.00035455,7]
[425236497,1781627518000,-907.465672,0.00035455,7]
[425236504,1781627518000,-562.812712,0.00035455,7]
[425236528,1781627518000,-187.589407,0.00035455,7]
[425236482,1781627518000,-945.399156,0.00035455,7]
[425236488,1781627518000,-878.333936,0.00035455,7]
[425236479,1781627518000,-945.399156,0.00035455,7]
[425236481,1781627518000,-343.461252,0.00035455,7]
[425236480,1781627518000,-3324.68781,0.00035455,7]
[425236487,1781627518000,-945.399156,0.00035455,7]
[425236486,1781627518000,-343.461252,0.00035455,7]
[425236485,1781627518000,-576.815484,0.00035455,7]
[425236484,1781627518000,-907.465672,0.00035455,7]
[425236483,1781627518000,-3324.68781,0.00035455,7]
[425236507,1781627518000,-767.786436,0.00035455,7]
[425236491,1781627518000,-878.333936,0.00035455,7]
[425236489,1781627518000,-907.465672,0.00035455,7]
[425236493,1781627518000,-907.465672,0.00035455,7]
[425236495,1781627518000,-878.333936,0.00035455,7]
[425236494,1781627518000,-945.399156,0.00035455,7]
[425236498,1781627518000,-878.333936,0.00035455,7]
[425236496,1781627518000,-576.815484,0.00035455,7]
[425236492,1781627518000,-576.815484,0.00035455,7]
[425236499,1781627518000,-562.812712,0.00035455,7]
[425236502,1781627518000,-562.812712,0.00035455,7]
[425236501,1781627518000,-767.786436,0.00035455,7]
[425236500,1781627518000,-562.812712,0.00035455,7]
[425236490,1781627518000,-576.815484,0.00035455,7]
[425236530,1781627518000,-2623.423271,0.00035455,7]
[425236551,1781627518000,-770.514652,0.00035455,7]
[425236536,1781627518000,-4573.124125,0.00035455,7]
[425236562,1781627518000,-241.897313,0.00035455,7]
[425236561,1781627518000,-1741.460222,0.00035455,7]
[425236565,1781627518000,-1254.757285,0.00035455,7]
[425236567,1781627518000,-1741.460222,0.00035455,7]
[425236575,1781627518000,-1254.757285,0.00035455,7]
[425236572,1781627518000,-151.0,0.00035455,7]
[425236566,1781627518000,-904.306582,0.00035455,7]
[425236570,1781627518000,-1456.594552,0.00035455,7]
[425236574,1781627518000,-904.306582,0.00035455,7]
[425236569,1781627518000,-241.897313,0.00035455,7]
[425236568,1781627518000,-3236.065293,0.00035455,7]
[425236563,1781627518000,-3236.065293,0.00035455,7]
[425236573,1781627518000,-270.157998,0.00035455,7]
[425236571,1781627518000,-476.25,0.00035455,7]
[425236578,1781627518000,-1456.594552,0.00035455,7]
[425236577,1781627518000,-1741.460222,0.00035455,7]
[425236579,1781627518000,-241.897313,0.00035455,7]
[425236585,1781627518000,-1545.442837,0.00035455,7]
[425236581,1781627518000,-1545.442837,0.00035455,7]
[425236582,1781627518000,-270.157998,0.00035455,7]
[425236584,1781627518000,-1456.594552,0.00035455,7]
[425236580,1781627518000,-476.25,0.00035455,7]
[425236583,1781627518000,-241.897313,0.00035455,7]
[425236532,1781627518000,-1095.397874,0.00035455,7]
[425236576,1781627518000,-3236.065293,0.00035455,7]
[425236564,1781627518000,-1456.594552,0.00035455,7]
[425236586,1781627518000,-270.157998,0.00035455,7]
[425236558,1781627518000,-151.0,0.00035455,7]
[425236559,1781627518000,-1254.757285,0.00035455,7]
[425236534,1781627518000,-770.514652,0.00035455,7]
[425236535,1781627518000,-1999.448705,0.00035455,7]
[425236537,1781627518000,-2623.423271,0.00035455,7]
[425236538,1781627518000,-1024.179099,0.00035455,7]
[425236539,1781627518000,-187.589407,0.00035455,7]
[425236542,1781627518000,-1999.448705,0.00035455,7]
[425236541,1781627518000,-770.514652,0.00035455,7]
[425236544,1781627518000,-4573.124125,0.00035455,7]
[425236554,1781627518000,-904.306582,0.00035455,7]
[425236547,1781627518000,-1999.448705,0.00035455,7]
[425236540,1781627518000,-1095.397874,0.00035455,7]
[425236546,1781627518000,-770.514652,0.00035455,7]
[425236560,1781627518000,-904.306582,0.00035455,7]
[425236545,1781627518000,-1024.179099,0.00035455,7]
[425236555,1781627518000,-3236.065293,0.00035455,7]
[425236557,1781627518000,-186.078539,0.00035455,7]
[425236556,1781627518000,-1741.460222,0.00035455,7]
[425236553,1781627518000,-1254.757285,0.00035455,7]
[425236533,1781627518000,-187.589407,0.00035455,7]
[425236548,1781627518000,-4573.124125,0.00035455,7]
[425236549,1781627518000,-151.0,0.00035455,7]
[425236550,1781627518000,-1024.179099,0.00035455,7]
[425236543,1781627518000,-151.0,0.00035455,7]
[425236552,1781627518000,-1999.448705,0.00035455,7]
[425236622,1781627519000,-152.117244,0.00035455,7]
[425236616,1781627519000,-692.07998,0.00035455,7]
[425236619,1781627519000,-409.488564,0.00035455,7]
[425236618,1781627519000,-151.0,0.00035455,7]
[425236615,1781627519000,-3189.322519,0.00035455,7]
[425236620,1781627519000,-692.07998,0.00035455,7]
[425236623,1781627519000,-151.0,0.00035455,7]
[425236627,1781627519000,-3189.322519,0.00035455,7]
[425236631,1781627519000,-198.081191,0.00035455,7]
[425236617,1781627519000,-3189.322519,0.00035455,7]
[425236643,1781627519000,-1997.775072,0.00035455,7]
[425236624,1781627519000,-151.0,0.00035455,7]
[425236621,1781627519000,-3189.322519,0.00035455,7]
[425236626,1781627519000,-409.488564,0.00035455,7]
[425236628,1781627519000,-692.07998,0.00035455,7]
[425236630,1781627519000,-151.0,0.00035455,7]
[425236629,1781627519000,-152.117244,0.00035455,7]
[425236633,1781627519000,-692.07998,0.00035455,7]
[425236632,1781627519000,-409.488564,0.00035455,7]
[425236644,1781627519000,-1117.328852,0.00035455,7]
[425236634,1781627519000,-152.117244,0.00035455,7]
[425236614,1781627519000,-804.200528,0.00035455,7]
[425236625,1781627519000,-198.081191,0.00035455,7]
[425236613,1781627519000,-804.200528,0.00035455,7]
[425236603,1781627519000,-1162.631104,0.00035455,7]
[425236610,1781627519000,-1162.631104,0.00035455,7]
[425236636,1781627519000,-151.0,0.00035455,7]
[425236588,1781627519000,-1545.442837,0.00035455,7]
[425236598,1781627519000,-274.275431,0.00035455,7]
[425236597,1781627519000,-151.0,0.00035455,7]
[425236591,1781627519000,-476.25,0.00035455,7]
[425236587,1781627519000,-476.25,0.00035455,7]
[425236589,1781627519000,-2023.395163,0.00035455,7]
[425236590,1781627519000,-1798.373041,0.00035455,7]
[425236594,1781627519000,-2023.395163,0.00035455,7]
[425236593,1781627519000,-270.157998,0.00035455,7]
[425236596,1781627519000,-1798.373041,0.00035455,7]
[425236612,1781627519000,-804.200528,0.00035455,7]
[425236595,1781627519000,-1545.442837,0.00035455,7]
[425236599,1781627519000,-2023.395163,0.00035455,7]
[425236601,1781627519000,-151.0,0.00035455,7]
[425236602,1781627519000,-274.275431,0.00035455,7]
[425236606,1781627519000,-274.275431,0.00035455,7]
[425236600,1781627519000,-1798.373041,0.00035455,7]
[425236604,1781627519000,-2023.395163,0.00035455,7]
[425236608,1781627519000,-1162.631104,0.00035455,7]
[425236605,1781627519000,-1798.373041,0.00035455,7]
[425236607,1781627519000,-1162.631104,0.00035455,7]
[425236609,1781627519000,-804.200528,0.00035455,7]
[425236611,1781627519000,-151.0,0.00035455,7]
[425236592,1781627519000,-274.275431,0.00035455,7]
[425236638,1781627519000,-409.488564,0.00035455,7]
[425236657,1781627519000,-1318.157382,0.00035455,7]
[425236640,1781627519000,-1997.775072,0.00035455,7]
[425236672,1781627519000,-16633.29148667,0.00035462,2]
[425236671,1781627519000,-294.47,0.0003546,69]
[425236680,1781627519000,-174.45830528,0.000355,7]
[425236674,1781627519000,-152.0,0.00035486,30]
[425236670,1781627519000,-181.823397,0.00035455,7]
[425236678,1781627519000,-5000.0,0.00035489,2]
[425236679,1781627519000,-5000.0,0.00035489,2]
[425236681,1781627519000,-800.0,0.000355,7]
[425236673,1781627519000,-152.0,0.00035486,30]
[425236676,1781627519000,-5000.0,0.00035489,2]
[425236635,1781627519000,-1997.775072,0.00035455,7]
[425236675,1781627519000,-5010.54194764,0.00035489,2]
[425236683,1781627519000,-400.0,0.000355,7]
[425236682,1781627519000,-800.0,0.000355,7]
[425236684,1781627519000,-800.0,0.000355,7]
[425236686,1781627519000,-151.0,0.00035512,2]
[425236688,1781627519000,-833.92535152,0.00035512,2]
[425236685,1781627519000,-800.0,0.000355,7]
[425236690,1781627519000,-5000.0,0.00035523,2]
[425236687,1781627519000,-693.39197629,0.00035512,2]
[425236692,1781627519000,-5000.0,0.00035523,2]
[425236689,1781627519000,-4876.7007,0.00035513,2]
[425236691,1781627519000,-5000.0,0.00035523,2]
[425236669,1781627519000,-151.0,0.00035455,7]
[425236666,1781627519000,-1604.418048,0.00035455,7]
[425236677,1781627519000,-5000.0,0.00035489,2]
[425236664,1781627519000,-1604.418048,0.00035455,7]
[425236668,1781627519000,-151.0,0.00035455,7]
[425236641,1781627519000,-198.081191,0.00035455,7]
[425236642,1781627519000,-1997.775072,0.00035455,7]
[425236639,1781627519000,-152.117244,0.00035455,7]
[425236637,1781627519000,-198.081191,0.00035455,7]
[425236649,1781627519000,-169.723403,0.00035455,7]
[425236647,1781627519000,-1117.328852,0.00035455,7]
[425236650,1781627519000,-1117.328852,0.00035455,7]
[425236654,1781627519000,-1117.328852,0.00035455,7]
[425236648,1781627519000,-1318.157382,0.00035455,7]
[425236646,1781627519000,-169.723403,0.00035455,7]
[425236653,1781627519000,-1318.157382,0.00035455,7]
[425236645,1781627519000,-1318.157382,0.00035455,7]
[425236651,1781627519000,-3083.666204,0.00035455,7]
[425236655,1781627519000,-3083.666204,0.00035455,7]
[425236665,1781627519000,-1604.418048,0.00035455,7]
[425236667,1781627519000,-1604.418048,0.00035455,7]
[425236662,1781627519000,-344.70821,0.00035455,7]
[425236660,1781627519000,-344.70821,0.00035455,7]
[425236663,1781627519000,-344.70821,0.00035455,7]
[425236658,1781627519000,-344.70821,0.00035455,7]
[425236659,1781627519000,-3083.666204,0.00035455,7]
[425236656,1781627519000,-169.723403,0.00035455,7]
[425236652,1781627519000,-169.723403,0.00035455,7]
[425236661,1781627519000,-3083.666204,0.00035455,7]
[425236728,1781627520000,-600.0,0.00035616,120]
[425236737,1781627520000,-158.94556138,0.00035616,7]
[425236735,1781627520000,-600.0,0.00035616,120]
[425236738,1781627520000,-858.17202004,0.00035616,7]
[425236736,1781627520000,-558.0,0.00035616,120]
[425236723,1781627520000,-1340.66,0.000356,30]
[425236722,1781627520000,-1340.665,0.000356,60]
[425236720,1781627520000,-1747.843,0.000356,60]
[425236721,1781627520000,-1747.84,0.000356,30]
[425236732,1781627520000,-1000.0,0.00035616,120]
[425236726,1781627520000,-4524.13582145,0.0003561,2]
[425236731,1781627520000,-2062.76,0.00035616,30]
[425236743,1781627520000,-858.17202004,0.00035616,7]
[425236729,1781627520000,-859.79,0.00035616,60]
[425236730,1781627520000,-2000.0,0.00035616,30]
[425236734,1781627520000,-580.0,0.00035616,120]
[425236739,1781627520000,-858.17202004,0.00035616,7]
[425236740,1781627520000,-858.17202004,0.00035616,7]
[425236741,1781627520000,-858.17202004,0.00035616,7]
[425236744,1781627520000,-858.17202004,0.00035616,7]
[425236747,1781627520000,-858.17202004,0.00035616,7]
[425236745,1781627520000,-858.17202004,0.00035616,7]
[425236742,1781627520000,-858.17202004,0.00035616,7]
[425236749,1781627520000,-858.17202004,0.00035616,7]
[425236733,1781627520000,-800.0,0.00035616,120]
[425236727,1781627520000,-7815.0,0.00035611,10]
[425236746,1781627520000,-858.17202004,0.00035616,7]
[425236719,1781627520000,-2263.0,0.00035589,120]
[425236693,1781627520000,-5000.0,0.00035523,2]
[425236694,1781627520000,-5000.0,0.00035523,2]
[425236699,1781627520000,-2358.5,0.00035589,120]
[425236697,1781627520000,-658.364513,0.00035579,120]
[425236696,1781627520000,-2029.0026,0.00035562,2]
[425236700,1781627520000,-2128.0,0.00035589,120]
[425236698,1781627520000,-2358.5,0.00035589,120]
[425236695,1781627520000,-1001.0,0.00035562,7]
[425236701,1781627520000,-2128.0,0.00035589,120]
[425236702,1781627520000,-1360.0,0.00035589,120]
[425236704,1781627520000,-1770.5,0.00035589,120]
[425236703,1781627520000,-1360.0,0.00035589,120]
[425236725,1781627520000,-171408.65714048,0.0003561,2]
[425236706,1781627520000,-1402.0,0.00035589,120]
[425236705,1781627520000,-1770.5,0.00035589,120]
[425236708,1781627520000,-1575.18418689,0.00035589,120]
[425236707,1781627520000,-1402.0,0.00035589,120]
[425236715,1781627520000,-1898.5,0.00035589,120]
[425236714,1781627520000,-1775.5,0.00035589,120]
[425236710,1781627520000,-1336.15384617,0.00035589,120]
[425236713,1781627520000,-1775.5,0.00035589,120]
[425236709,1781627520000,-1575.18418689,0.00035589,120]
[425236712,1781627520000,-2361.0,0.00035589,120]
[425236711,1781627520000,-2023.00000001,0.00035589,120]
[425236718,1781627520000,-1407.5,0.00035589,120]
[425236717,1781627520000,-1407.5,0.00035589,120]
[425236716,1781627520000,-1898.5,0.00035589,120]
[425236748,1781627520000,-858.17202004,0.00035616,7]
[425236724,1781627520000,-700.0,0.0003561,60]
[425236752,1781627520000,-858.17202004,0.00035616,7]
[425236777,1781627520000,-858.17202004,0.00035616,7]
[425236783,1781627520000,-858.17202004,0.00035616,7]
[425236781,1781627520000,-858.17202004,0.00035616,7]
[425236786,1781627520000,-858.17202004,0.00035616,7]
[425236796,1781627520000,-858.17202004,0.00035616,7]
[425236785,1781627520000,-858.17202004,0.00035616,7]
[425236788,1781627520000,-858.17202004,0.00035616,7]
[425236787,1781627520000,-858.17202004,0.00035616,7]
[425236793,1781627520000,-858.17202004,0.00035616,7]
[425236792,1781627520000,-858.17202004,0.00035616,7]
[425236795,1781627520000,-858.17202004,0.00035616,7]
[425236797,1781627520000,-858.17202004,0.00035616,7]
[425236775,1781627520000,-858.17202004,0.00035616,7]
[425236790,1781627520000,-858.17202004,0.00035616,7]
[425236794,1781627520000,-858.17202004,0.00035616,7]
[425236799,1781627520000,-858.17202004,0.00035616,7]
[425236798,1781627520000,-858.17202004,0.00035616,7]
[425236800,1781627520000,-858.17202005,0.00035616,7]
[425236802,1781627520000,-858.17202005,0.00035616,7]
[425236801,1781627520000,-858.17202005,0.00035616,7]
[425236803,1781627520000,-858.17202005,0.00035616,7]
[425236804,1781627520000,-858.17202005,0.00035616,7]
[425236805,1781627520000,-858.17202005,0.00035616,7]
[425236806,1781627520000,-858.17202005,0.00035616,7]
[425236807,1781627520000,-858.17202005,0.00035616,7]
[425236760,1781627520000,-858.17202004,0.00035616,7]
[425236789,1781627520000,-858.17202004,0.00035616,7]
[425236776,1781627520000,-858.17202004,0.00035616,7]
[425236791,1781627520000,-858.17202004,0.00035616,7]
[425236782,1781627520000,-858.17202004,0.00035616,7]
[425236750,1781627520000,-858.17202004,0.00035616,7]
[425236751,1781627520000,-858.17202004,0.00035616,7]
[425236757,1781627520000,-858.17202004,0.00035616,7]
[425236780,1781627520000,-858.17202004,0.00035616,7]
[425236755,1781627520000,-858.17202004,0.00035616,7]
[425236756,1781627520000,-858.17202004,0.00035616,7]
[425236754,1781627520000,-858.17202004,0.00035616,7]
[425236753,1781627520000,-858.17202004,0.00035616,7]
[425236759,1781627520000,-858.17202004,0.00035616,7]
[425236761,1781627520000,-858.17202004,0.00035616,7]
[425236762,1781627520000,-858.17202004,0.00035616,7]
[425236771,1781627520000,-858.17202004,0.00035616,7]
[425236772,1781627520000,-858.17202004,0.00035616,7]
[425236758,1781627520000,-858.17202004,0.00035616,7]
[425236769,1781627520000,-858.17202004,0.00035616,7]
[425236767,1781627520000,-858.17202004,0.00035616,7]
[425236779,1781627520000,-858.17202004,0.00035616,7]
[425236784,1781627520000,-858.17202004,0.00035616,7]
[425236774,1781627520000,-858.17202004,0.00035616,7]
[425236768,1781627520000,-858.17202004,0.00035616,7]
[425236764,1781627520000,-858.17202004,0.00035616,7]
[425236778,1781627520000,-858.17202004,0.00035616,7]
[425236763,1781627520000,-858.17202004,0.00035616,7]
[425236770,1781627520000,-858.17202004,0.00035616,7]
[425236766,1781627520000,-858.17202004,0.00035616,7]
[425236773,1781627520000,-858.17202004,0.00035616,7]
[425236765,1781627520000,-858.17202004,0.00035616,7]
[425236828,1781627521000,-500.0,0.00035616,7]
[425236819,1781627521000,-858.17202005,0.00035616,7]
[425236833,1781627521000,-703.09,0.00035616,2]
[425236824,1781627521000,-558.18907203,0.00035616,7]
[425236823,1781627521000,-500.0,0.00035616,7]
[425236827,1781627521000,-500.0,0.00035616,7]
[425236826,1781627521000,-500.0,0.00035616,7]
[425236821,1781627521000,-858.17202005,0.00035616,7]
[425236814,1781627521000,-858.17202005,0.00035616,7]
[425236818,1781627521000,-858.17202005,0.00035616,7]
[425236813,1781627521000,-858.17202005,0.00035616,7]
[425236817,1781627521000,-858.17202005,0.00035616,7]
[425236822,1781627521000,-858.17202005,0.00035616,7]
[425236816,1781627521000,-858.17202005,0.00035616,7]
[425236812,1781627521000,-858.17202005,0.00035616,7]
[425236811,1781627521000,-858.17202005,0.00035616,7]
[425236808,1781627521000,-858.17202005,0.00035616,7]
[425236810,1781627521000,-858.17202005,0.00035616,7]
[425236809,1781627521000,-858.17202005,0.00035616,7]
[425236825,1781627521000,-500.0,0.00035616,7]
[425236820,1781627521000,-858.17202005,0.00035616,7]
[425236830,1781627521000,-858.17202006,0.00035616,7]
[425236815,1781627521000,-858.17202005,0.00035616,7]
[425236831,1781627521000,-858.17202006,0.00035616,7]
[425236829,1781627521000,-858.17202006,0.00035616,7]
[425236852,1781627521000,-500.1,0.00035625,31]
[425236851,1781627521000,-500.1,0.00035625,31]
[425236849,1781627521000,-1160.134367,0.00035616,30]
[425236850,1781627521000,-600.0,0.00035621,120]
[425236847,1781627521000,-1160.134367,0.00035616,30]
[425236848,1781627521000,-1160.134367,0.00035616,30]
[425236853,1781627521000,-466.86382278,0.00035625,31]
[425236836,1781627521000,-1160.134367,0.00035616,30]
[425236839,1781627521000,-1160.134367,0.00035616,30]
[425236837,1781627521000,-1160.134367,0.00035616,30]
[425236842,1781627521000,-1160.134367,0.00035616,30]
[425236838,1781627521000,-1160.134367,0.00035616,30]
[425236840,1781627521000,-1160.134367,0.00035616,30]
[425236841,1781627521000,-1160.134367,0.00035616,30]
[425236845,1781627521000,-1160.134367,0.00035616,30]
[425236843,1781627521000,-1160.134367,0.00035616,30]
[425236846,1781627521000,-1160.134367,0.00035616,30]
[425236834,1781627521000,-1160.134367,0.00035616,30]
[425236844,1781627521000,-1160.134367,0.00035616,30]
[425236832,1781627521000,-858.17202005,0.00035616,7]
[425236835,1781627521000,-1160.134367,0.00035616,30]
[425236856,1781627523000,-89.73487102,0.0002863,2]
[425236855,1781627523000,-1001.74512898,0.0002863,2]
[425236857,1781627523000,-1014.04971249,0.00028661,7]
[425236858,1781627523000,-77.43028751,0.00028661,7]
[425236859,1781627523000,-1091.48,0.00028693,30]
[425236861,1781627523000,-286.67037757,0.00035,7]
[425236860,1781627523000,-166.81556,0.00035,7]
[425236854,1781627523000,-150.0,0.0002058,2]
[425236883,1781627524000,-1497.446791,0.00035019,7]
[425236879,1781627524000,-166.81556,0.00035019,7]
[425236880,1781627524000,-3071.453662,0.00035019,7]
[425236876,1781627524000,-166.81556,0.00035,7]
[425236869,1781627524000,-1289.520228,0.00035,7]
[425236867,1781627524000,-1497.446791,0.00035,7]
[425236866,1781627524000,-218.073132,0.00035,7]
[425236872,1781627524000,-444.015746,0.00035,7]
[425236865,1781627524000,-265.979518,0.00035,7]
[425236870,1781627524000,-1497.446791,0.00035,7]
[425236868,1781627524000,-444.015746,0.00035,7]
[425236871,1781627524000,-166.81556,0.00035,7]
[425236863,1781627524000,-500.0,0.00029,2]
[425236864,1781627524000,-2784.78328443,0.00035,7]
[425236862,1781627524000,-1091.48,0.00028725,2]
[425236881,1781627524000,-265.979518,0.00035019,7]
[425236873,1781627524000,-1289.520228,0.00035,7]
[425236878,1781627524000,-1289.520228,0.00035019,7]
[425236875,1781627524000,-218.073132,0.00035,7]
[425236877,1781627524000,-444.015746,0.00035019,7]
[425236884,1781627524000,-444.015746,0.00035019,7]
[425236899,1781627524000,-152.0,0.00014934,2]
[425236900,1781627524000,-309.4764395,0.00016109,2]
[425236898,1781627524000,-2493.91428776,0.00035636,2]
[425236896,1781627524000,-151.5,0.00035633,7]
[425236897,1781627524000,-151.5,0.00035633,7]
[425236895,1781627524000,-314.0,0.00035627,120]
[425236893,1781627524000,-1497.446791,0.00035206,7]
[425236894,1781627524000,-101.11724555,0.00035625,31]
[425236891,1781627524000,-218.073132,0.00035206,7]
[425236892,1781627524000,-444.015746,0.00035206,7]
[425236889,1781627524000,-166.81556,0.00035206,7]
[425236882,1781627524000,-218.073132,0.00035019,7]
[425236888,1781627524000,-1289.520228,0.00035206,7]
[425236887,1781627524000,-444.015746,0.00035206,7]
[425236885,1781627524000,-1289.520228,0.00035019,7]
[425236886,1781627524000,-1497.446791,0.00035206,7]
[425236874,1781627524000,-218.073132,0.00035,7]
[425236890,1781627524000,-3071.453662,0.00035206,7]
[425236930,1781627525000,-265.979518,0.00035206,7]
[425236927,1781627525000,-166.81556,0.00035206,7]
[425236928,1781627525000,-444.015746,0.00035206,7]
[425236924,1781627525000,-166.81556,0.00035019,7]
[425236919,1781627525000,-218.073132,0.00035,7]
[425236931,1781627525000,-2382.78641224,0.00035636,2]
[425236926,1781627525000,-218.073132,0.00035206,7]
[425236937,1781627525000,-319.88395302,0.00035679,7]
[425236943,1781627525000,-1091.48,0.00028883,30]
[425236933,1781627525000,-204.0,0.0003565,120]
[425236932,1781627525000,-1000.0,0.00035643,120]
[425236936,1781627525000,-2180.0836,0.00035677,2]
[425236935,1781627525000,-1000.0,0.00035671,120]
[425236938,1781627525000,-1127.1641452,0.00016109,2]
[425236939,1781627525000,-1129.30115535,0.00016109,2]
[425236940,1781627525000,-626.0,0.00022215,7]
[425236942,1781627525000,-189.76269955,0.00028672,2]
[425236921,1781627525000,-166.81556,0.00035019,7]
[425236934,1781627525000,-158.25033973,0.00035656,2]
[425236922,1781627525000,-444.015746,0.00035019,7]
[425236913,1781627525000,-1497.446791,0.00035,7]
[425236925,1781627525000,-1289.520228,0.00035206,7]
[425236944,1781627525000,-1497.446791,0.00035,7]
[425236901,1781627525000,-774.52060594,0.00016109,2]
[425236902,1781627525000,-683.0,0.000198,5]
[425236905,1781627525000,-1091.48,0.00028788,30]
[425236903,1781627525000,-189.76269955,0.00028672,2]
[425236907,1781627525000,-1091.48,0.00028852,7]
[425236906,1781627525000,-1091.48,0.0002882,2]
[425236904,1781627525000,-1091.48,0.00028756,7]
[425236909,1781627525000,-500.0,0.00029,2]
[425236908,1781627525000,-500.0,0.00029,2]
[425236911,1781627525000,-505.03942202,0.000319,5]
[425236910,1781627525000,-500.0,0.00029,2]
[425236915,1781627525000,-218.073132,0.00035,7]
[425236916,1781627525000,-1497.446791,0.00035,7]
[425236912,1781627525000,-444.015746,0.00035,7]
[425236918,1781627525000,-166.81556,0.00035,7]
[425236917,1781627525000,-166.81556,0.00035,7]
[425236923,1781627525000,-1497.446791,0.00035019,7]
[425236920,1781627525000,-218.073132,0.00035019,7]
[425236929,1781627525000,-1497.446791,0.00035206,7]
[425236941,1781627525000,-172.04459225,0.00028068,2]
[425236914,1781627525000,-444.015746,0.00035,7]
[425236948,1781627525000,-218.073132,0.00035019,7]
[425236963,1781627525000,-3991.413641,0.00035759,2]
[425236971,1781627525000,-503.17068933,0.00035804,31]
[425236972,1781627525000,-1000.0,0.00035808,120]
[425236975,1781627525000,-1000.0,0.00035835,120]
[425236977,1781627525000,-597.18410789,0.00035847,30]
[425236974,1781627525000,-902.14933848,0.00035812,30]
[425236982,1781627525000,-1033.46437831,0.00016109,2]
[425236983,1781627525000,-1862.57405462,0.0003587,7]
[425236979,1781627525000,-543.81329421,0.00035862,8]
[425236989,1781627525000,-294.47,0.000359,98]
[425236981,1781627525000,-137.42594538,0.0003587,7]
[425236976,1781627525000,-169.75,0.00035844,2]
[425236984,1781627525000,-26.54156707,0.00035879,120]
[425236980,1781627525000,-1000.0,0.00035863,120]
[425236978,1781627525000,-500.0,0.0003585,120]
[425236985,1781627525000,-616.30128493,0.00035879,120]
[425236986,1781627525000,-4876.7007,0.00035883,2]
[425236987,1781627525000,-1000.0,0.0003589,120]
[425236988,1781627525000,-150.0,0.00035899,2]
[425236968,1781627525000,-278.016359,0.00035804,31]
[425236970,1781627525000,-500.1,0.00035804,31]
[425236945,1781627525000,-265.979518,0.00035,7]
[425236967,1781627525000,-2820.62,0.000358,120]
[425236966,1781627525000,-1000.0,0.000358,120]
[425236946,1781627525000,-1497.446791,0.00035,7]
[425236949,1781627525000,-1497.446791,0.00035019,7]
[425236947,1781627525000,-265.979518,0.00035,7]
[425236951,1781627525000,-166.81556,0.00035206,7]
[425236950,1781627525000,-265.979518,0.00035019,7]
[425236960,1781627525000,-2029.0026,0.00035735,2]
[425236957,1781627525000,-1000.0,0.00035698,120]
[425236958,1781627525000,-164.766059,0.00035726,120]
[425236959,1781627525000,-835.233941,0.00035726,120]
[425236961,1781627525000,-1000.0,0.00035753,120]
[425236953,1781627525000,-1497.446791,0.00035206,7]
[425236955,1781627525000,-318.10604698,0.00035679,7]
[425236956,1781627525000,-725.0,0.00035681,11]
[425236954,1781627525000,-265.979518,0.00035206,7]
[425236962,1781627525000,-885.287059,0.00035759,2]
[425236964,1781627525000,-1000.0,0.0003578,120]
[425236973,1781627525000,-2220.0,0.00035812,30]
[425236969,1781627525000,-222.083641,0.00035804,31]
[425236952,1781627525000,-218.073132,0.00035206,7]
[425236965,1781627525000,-350.0,0.0003579,39]
[425237006,1781627526000,-399.18849,0.00035951,7]
[425237005,1781627526000,-159.04856,0.00035951,30]
[425237003,1781627526000,-931.731581,0.00035951,30]
[425237015,1781627526000,-3653.519003,0.00035951,30]
[425237009,1781627526000,-399.188491,0.00035951,7]